Cogmind - Beta 15 @@@ ROGUE MODE // 2025.05.31 @ 16:28:59 Player: Mark Result: Destroyed by S-10 Pest with Light Assault Rifle Performance ------------- Evolutions (0) 0 Regions Visited (1) 200 Robots Destroyed (5) 25 Value Destroyed (50) 50 Prototype IDs (0) 0 Alien Tech Used (0) 0 Bonus (0) 0 TOTAL SCORE: 275 Bonus ------- None Cogmind --------- Core Integrity 0/250 Matter 287/300 Energy 125/125 System Corruption 1% Temperature Cool (0) Movement Hovering (160) Ox1 Location -10/Materials Parts ------- > --- POWER (1) -------- Light Ion Engine > --- PROPULSION (2) --- Backup Propulsion I Flight Unit > --- UTILITY (2) ------ Backup Plating I Backup Plating I > --- WEAPON (2) ------- Backup Laser I Backup Laser I > --- INVENTORY (5) ---- Aluminum Leg Aluminum Leg Compact Wheel Medium Storage Unit Large Storage Unit Peak State ------------ > --- POWER ------------ Light Ion Engine > --- PROPULSION ------- Aluminum Leg Aluminum Leg > --- UTILITY ---------- Small Storage Unit Large Storage Unit > --- WEAPON ----------- Assault Rifle Assault Rifle > --- INVENTORY -------- Ion Engine [Rating: 7] Favorites ----------- Power Light Ion Engine Engine Light Ion Engine Propulsion Aluminum Leg Leg Aluminum Leg Wheel Compact Wheel Hover Unit Backup Propulsion I Flight Unit Flight Unit Utility Small Storage Unit Storage Small Storage Unit Protection Backup Plating I Weapon Assault Rifle Energy Gun Medium Laser Ballistic Gun Assault Rifle Build | -11 -10 ------- Run | Yrd Mat Slots Evolved . | . . Power . | . . Propulsion . | . . Utility . | . . Weapon . | . . Parts Attached 19 | 6 13 Power 3 | 1 2 Engine 3 | 1 2 Core . | . . Reactor . | . . Propulsion 6 | 2 4 Treads . | . . Leg 2 | 2 . Wheel 2 | . 2 Hover 1 | . 1 Flight 1 | . 1 Utility 6 | 1 5 Device . | . . Storage 6 | 1 5 Processor . | . . Hackware . | . . Protection . | . . Artifact . | . . Weapon 4 | 2 2 Energy Gun 2 | . 2 Energy Cannon . | . . Ballistic Gun 2 | 2 . Ballistic Cannon . | . . Launcher . | . . Special Weapon . | . . Impact Weapon . | . . Slashing Weapon . | . . Piercing Weapon . | . . Special Melee Weapon . | . . Unidentified Prototypes . | . . Parts Lost 5 | . 5 Power 1 | . 1 Propulsion 2 | . 2 Utility . | . . Weapon 2 | . 2 Highest Loss Streak 5 | . 5 To Critical Strikes . | . . Average Backups 4 | 1 5 Power . | . . Propulsion . | . 1 Utility 2 | . 2 Weapon . | . . Tool/Special . | . . Unused Backups 1 | . 1 Power . | . . Propulsion . | . . Utility 1 | . 1 Weapon . | . . Tool/Special . | . . Average Slot Usage (%) 81 | . 81 Engine 13 | . 13 Leg 17 | . 17 Wheel 4 | . 4 Hover 2 | . 2 Flight 2 | . 2 Storage 11 | . 11 Protection 3 | . 3 Energy Gun 9 | . 9 Ballistic Gun 16 | . 16 Peak Build Rating 7 | 6 7 Average Rating 5 | 4 5 On Entrance 3 | . 6 Naked Turns . | . . Heaviest Build 47 | 12 47 Greatest Support 32 | 20 32 Greatest Overweight (x) 3 | . 3 Average Overweight (x) . | . . Largest Inventory Capacity 15 | 8 15 Average Capacity 8 | 7 8 Most Carried 8 | 3 8 Average Carried 4 | 1 5 Final Capacity 8 | 8 5 Final Carried 5 | 1 5 Class Distribution -------------------- 100% | Mutant Dominant Class ---------------- Mutant | -10/Materials Resources | -11 -10 ----------- Run | Yrd Mat Matter Collected 300 | 224 76 Remotely . | . . Salvage Created 64 | . 64 Parts 4 | . 4 Haulers Intercepted . | . . Recyclers Shooed 1 | . 1 Parts Field Recycled . | . . Retrieved Matter . | . . Parts Self-Destructed . | . . Prevented . | . . Kills | -11 -10 ------- Run | Yrd Mat Combat Hostiles Destroyed 5 | . 5 Guns 5 | . 5 Classes Destroyed 1 | . 1 Swarmer 5 | . 5 Best Kill Streak 2 | . 2 Combat Bots Only 2 | . 2 Max Kills in Single Turn 1 | . 1 Gunslinging . | . . Exploded . | . . Melee . | . . Uniques/NPCs Destroyed . | . . Combat | -11 -10 -------- Run | Yrd Mat Hostile Shots Fired 138 | . 138 Missed 31 | . 31 Hits 107 | . 107 Projectile 107 | . 107 Critical Strikes 1 | . 1 Damage Taken 954 | . 954 Core 250 | . 250 Absorbed by Shields . | . . Core Remaining (%) 100 | 100 . Volleys Fired 35 | . 35 Largest 2 | . 2 Hottest 50 | . 50 Shots Fired 41 | . 41 Gun 41 | . 41 Cannon . | . . Launcher . | . . Special . | . . Kinetic 12 | . 12 Thermal 29 | . 29 Explosive . | . . Electromagnetic . | . . Robot Hit Streak 7 | . 7 Robot Miss Streak 3 | . 3 Penetration Max . | . . Secondary Targets 1 | . 1 Max Gunslinging Chain 1 | . 1 Shots Hit Robots 18 | . 18 Core Hits 7 | 1 6 Critical Kills . | . . Critical Parts Destroyed 1 | . 1 Critical Strikes 2 | . 2 Burn 1 | . 1 Destroy 1 | . 1 Melee Attacks . | . . Impact . | . . Slashing . | . . Piercing . | . . Sneak Attacks . | . . Combat Hostiles . | . . Follow-up Attacks . | . . Damage Inflicted 293 | 20 273 Guns 216 | . 216 Cannons . | . . Explosions . | . . Melee . | . . Ramming 77 | 20 57 Kinetic 91 | . 91 Thermal 125 | . 125 Explosive . | . . Electromagnetic . | . . Impact . | . . Slashing . | . . Piercing . | . . Highest Corruption 1 | . 1 Average Corruption 1 | . 1 Corruption Purged . | . . Corruption Blocked . | . . Effects 2 | . 2 Message Errors 1 | . 1 Energy Discharges 1 | . 1 Overload Shots . | . . Overflow Damage . | . . Projectiles . | . . Explosions . | . . Melee . | . . Knockbacks . | . . Impact . | . . Kinetic . | . . Secondary . | . . Self-Inflicted Damage 15 | . 15 Shots . | . . Rammed 11 | . 11 Targets Rammed 36 | 9 27 Kicked 25 | 9 16 Crushed . | . . Highest Temperature 60 | . 60 Average Temperature 19 | . 19 Received Heat Transfer 102 | . 102 Siege Activations . | . . Martial Activations . | . . Shielding Activations . | . . Robots Disrupted . | . . Combat Hostiles . | . . Robots Corrupted . | . . Combat Hostiles . | . . Parts Fried . | . . Impact Corruptions . | . . Robots Melted . | . . Combat Hostiles . | . . Parts Melted 1 | . 1 Heat Transferred 444 | . 444 Parts Sabotaged . | . . Parts Stolen . | . . Parts Stripped . | . . Power Chain Reactions . | . . Alert | -11 -10 ------- Run | Yrd Mat Maximum Alert Level . | . . Low Security (%) 100 | 100 100 Level 1 . | . . Level 2 . | . . Level 3 . | . . Level 4 . | . . Level 5 . | . . High Security . | . . Max Security . | . . Peak Influence 65 | . 65 Initial . | . . Average 14 | . 18 Influence Increases 222 | . 222 Destroy 0b10 Robot/C 100 | . 100 Destroy Leader 20 | . 20 Successful Hack 11 | . 11 Destroy Structure 1 | . 1 Lose Combat Pursuer 90 | . 90 Influence Decreases 205 | . 205 Time Decay 180 | . 180 Lost Part 25 | . 25 Squads Dispatched 2 | . 2 Investigation . | . . Extermination . | . . Reinforcement 2 | . 2 Assault . | . . Garrison . | . . Intercept . | . . Searches Triggered . | . . Construction Impeded . | . . Haulers Reinforced . | . . Active Scanning Responses . | . . Cargo Convoy Interrupts . | . . Stealth | -11 -10 --------- Run | Yrd Mat Distress Signals 4 | . 4 Communications Jammed . | . . Distress Signals . | . . Times Spotted 22 | . 22 Peak Tracking Total 8 | . 8 Tactical Retreats 6 | . 6 Traps | -11 -10 ------- Run | Yrd Mat Traps Triggered 1 | . 1 Indirectly . | . . Trap Hack Attempts . | . . Triggered . | . . Disarmed . | . . Reprogrammed . | . . Reused . | . . Traps Extracted . | . . Installed . | . . Triggered . | . . Machines | -11 -10 ---------- Run | Yrd Mat Machines Disabled . | . . Max in Single Turn . | . . Machines Repaired . | . . Machines Dismantled . | . . Machines Sabotaged . | . . Overloaded Fab Kills . | . . Hacking | -11 -10 --------- Run | Yrd Mat Machines Accessed 2 | . 2 Terminals 1 | . 1 Fabricators . | . . Repair Stations 1 | . 1 Recycling Units . | . . Scanalyzers . | . . Garrison Access . | . . Total Hacks 6 | . 6 Successful 5 | . 5 Failed 1 | . 1 Catastrophic . | . . Database Lockouts . | . . Manual . | . . Terminals 5 | . 5 Fabricators . | . . Repair Stations 1 | . 1 Recycling Units . | . . Scanalyzers . | . . Garrison Access . | . . Terminal Hacks 4 | . 4 Record 1 | . 1 Emergency Access Points 1 | . 1 Alert Level 1 | . 1 Hauler Manifests 1 | . 1 Fabricator Hacks . | . . Repair Station Hacks 1 | . 1 Refit 1 | . 1 Recycling Unit Hacks . | . . Scanalyzer . | . . Garrison Access Hacks . | . . Unauthorized Hacks . | . . Terminals . | . . Fabricators . | . . Repair Stations . | . . Recycling Units . | . . Scanalyzers . | . . Garrison Access . | . . Data Cores Recovered . | . . Used . | . . Hacking Detections 1 | . 1 Full Trace Events 1 | . 1 Feedback Events . | . . Feedback Blocked . | . . Robot Schematics Acquired . | . . Robots Built . | . . Authchips . | . . Time . | . . Total Robot Build Rating . | . . Part Schematics Acquired . | . . Parts Built . | . . Authchips . | . . Time . | . . Total Part Build Rating . | . . Parts Repaired . | . . Time . | . . Parts Recycled . | . . Recycled Matter . | . . Retrieved Matter . | . . Retrieved Components . | . . Parts Scanalyzed . | . . Part Schematics Acquired . | . . Parts Damaged . | . . Bothacking | -11 -10 ------------ Run | Yrd Mat Used RIF Installer . | . . Robots Hacked . | . . Non-combat . | . . Combat . | . . Robot Hacks Applied . | . . Relay Couplers Released . | . . Fabnet Peak Effective % . | . . Robots Rewired . | . . Allies Hacked . | . . Hacks Repelled . | . . Allies | -11 -10 -------- Run | Yrd Mat Total Allies . | . . Largest Group . | . . Highest-Rated Group . | . . Highest-Rated Ally . | . . Total Orders . | . . Ally Attacks . | . . Total Damage . | . . Kills . | . . Allies Corrupted . | . . Allies Melted . | . . Intel | -11 -10 ------- Run | Yrd Mat Active Infowar (turns) . | . . Robot Analysis Total . | . . Derelict Logs Recovered . | . . Drone Launches . | . . Drone Recoveries . | . . Exploration | -11 -10 ------------- Run | Yrd Mat Turns Passed 924 | 177 747 Spaces Moved 569 | 139 430 Core 98 | 18 80 Treads . | . . Legs 261 | 121 140 Wheels 73 | . 73 Hover 71 | . 71 Flight 66 | . 66 Fastest Speed 40 | 50 40 Average Speed 127 | 110 133 Slowest Speed 260 | 120 260 Overloaded Moves . | . . Propulsion Burnouts . | . . Robots Hopped 4 | . 4 Potential Cave-ins . | . . Cave-ins Triggered . | . . Exploration Rate (%) 25 | 6 45 Regions Visited 1 Branch Regions . Pre-discovered Areas . | . . Known Exits Taken . | . . Unknown Exits Taken 1 | 1 . Scrap Searched . | . . Spaces Dug . | . . Terrain Destroyed . | . . Melee . | . . Projectile . | . . AOE . | . . Terrain Rammed 3 | . 3 Walls Destroyed . | . . Machines Disabled . | . . Actions | -11 -10 --------- Run | Yrd Mat Total 705 | 158 547 Wait 19 | 2 17 Move 562 | 138 424 Hop 2 | . 2 Pick Up 8 | 3 5 Fast Attach 16 | 4 12 Attach 5 | 2 3 Detach 9 | . 9 Swap 2 | . 2 Drop 8 | . 8 Fire 35 | . 35 Melee . | . . Ram 14 | . 14 Kick 25 | 9 16 Crush . | . . Escape Stasis . | . . Rewire . | . . Trap . | . . Miscellaneous . | . . Route ------- -11/Scrapyard -10/Materials (discovered 1 exit: [*Mat]) History --------- Turn | Location | Event 13 | -11/Scrapyard | Discovered new exit (range 15) 178 | -11/Scrapyard | Entered Materials 301 | -10/Materials | Build established: Mutant 436 | -10/Materials | Discovered new exit (range 16) 743 | -10/Materials | Core integrity fell below 50% 764 | -10/Materials | Core integrity fell below 20% 792 | -10/Materials | Lost 5 parts (1p2n2w) 925 | -10/Materials | Destroyed by S-10 Pest with Light Assault Rifle Last Messages --------------- (1 escort) A-02 Transporter 1x Grenade Launcher 5x Com. Wheel (2 escorts) Connecting with Repair Station... >>Refit Scanning configuration... Attaching: Backup Propulsion I x1 Backup Plating I x2 Backup Laser I x2 Slammed into R-06 Scavenger. Flight Unit broken. Destabilizing: Short circuit. Slammed into U-05 Engineer. K-01 Serf cleans the Terminal. ALERT: Hostiles spotted, dispatching reinforcements to Terminal M003. W-16 Scout sends out distress signal. K-01 Serf cleans the Recycling Unit. Map ----- +----------------------------------------------------+ | ?????????????????????????????????????????????????? | | ?????????????????????????????????????????????????? | | ?????????????????????????????????????????????????? | | ?????????????????????????????????????????????????? | | ?????????????????????????????????????????????????? | | ?????????????????????????????????????????????????? | | ?????????????????????????????????????????????????? | | ?????????????????? ????????????????????????????? | | ???????????????? ??? ??????????????????????? | | ????????????? ??? ???????????????????? | | ????????????# """ ?????????????????? | | ????????????# """ ?????????????????? | | ????????????# ?????????????????? | | ????????????# g ""?????????????????? | | ?????????#### ""?????????????????? | | ?????????# ""?????????????????? | | ?????????# !!! ??????????????????? | | ?????????# !!! ????????????????????? | | ?????????# !!! #?????????????????????? | | ?????????# #?????????????????????? | | ?????????# #?????????????????????? | | ???????### a #?????????????????????? | | ????? g #?????????????????????? | | ????? ### #?????????????????????? | | ???????????????# #?????????????????????? | | ???????????????# "Y" @k##########????????????? | | ???????????????# """ ??????????? | | ???????????????# k k ######???????????????? | | ???????????????# #????????????????????? | | ???????????????# ###+######??????????????????? | | ???????????????### ### #??????????????????? | | ?????????????????# #?# """ #??????????????????? | | ?????????????????# #?# """ #??????????????????? | | ?????????????????# #?# """ #??????????????????? | | ????????????????## ### #??????????????????? | | ################# ## #??????????????????? | | # !!## T ## " " #??????????????????? | | # !!## #### ## "R" #??????????????????? | | # ## ######### """ #??????????????????? | | # ## + #########+#??????????????????? | | ###+######## # """" ######### #??????????????????? | | + #??????# # """" # ## #??????????????????? | | ## #??????# # """" # """ ## #??????????????????? | | ## ######## # # """ ## #??????????????????? | | ## # + """ ## #??????????????????? | | ## #### ######## ! ## #??????????????????? | | ## #?## ##?????#= ## #??????????????????? | | ## #?# #########+##### #??????????????????? | | ## #?# #??????????????????? | | # # #?# #### ####+#######??????????????????? | +----------------------------------------------------+ Best States ------------- Heat Dissipation 25 Energy Generation 10 Energy Capacity 250 Matter Stores 297 Matter Capacity 300 Sight Range 16 Terrain Scan Density 10 Armor Coverage 160 Evasion (%) 62 Item Schematics ----------------- None Robot Schematics ------------------ None Fabricated ------------ Nothing Repaired ---------- Nothing Alien Tech Used ----------------- None Achievements -------------- Cya! Shopping List Challenges ------------ None Game ------ Seed SmallCooledStripper Manual? 0 Play Time 00:28:49 Cumulative 1.1 hours Start 2025.05.30 @ 21:13:51 End 2025.05.31 @ 16:28:59 Sessions 1 Manual Loads 0 Difficulty Rogue Special Mode None Game No. 8 Rogue 8 Adventurer 0 Explorer 0 Win Type - Total 0 Types 0/0/0/0/0/0/0/0/0/0 Lore% 0 Gallery% 3 Achievement% 5 Wizard Run 0 Options --------- Layout 1 ASCII 1 Keyboard 1 Movement Numpad Keybinds 0 Fullscreen 1 Font 32/Terminus Map View 130x35 Zoom Use 0% Tactical HUD 0 Map Filters NONE Filters NONE Steam 1 RUN: 8a3df380-2cf2-412a-8042-ac686a4800a0